[Event "*** Titled Tuesday Blitz"]
[Site "Chess.com"]
[Date "2019.08.06"]
[Round "3"]
[White "KarstenHansch"]
[Black "SergeiAza"]
[Result "0-1"]
[WhiteElo "2431"]
[BlackElo "2815"]
[TimeControl "180+2"]
[EndTime "13:34:37 PDT"]
[Termination "SergeiAza won by resignation"]

1. e4 {[%clk 0:03:01.9]} 1... e5 {[%clk 0:02:59.7]} 2. Nf3 {[%clk 0:03:00.9]}
2... Nc6 {[%clk 0:03:00.8]} 3. d4 {[%clk 0:02:58.9]} 3... exd4 {[%clk
0:03:01.4]} 4. Nxd4 {[%clk 0:02:56.8]} 4... Bc5 {[%clk 0:03:01.9]} 5. Nxc6
{[%clk 0:02:54]} 5... Qf6 {[%clk 0:03:02.1]} 6. Qf3 {[%clk 0:02:54.5]} 6... bxc6
{[%clk 0:02:58.4]} 7. Nd2 {[%clk 0:02:49.9]} 7... Qxf3 {[%clk 0:02:55.1]} 8.
Nxf3 {[%clk 0:02:48.2]} 8... d6 {[%clk 0:02:50.3]} 9. Bd3 {[%clk 0:02:48.4]}
9... Ne7 {[%clk 0:02:49.3]} 10. O-O {[%clk 0:02:47.9]} 10... O-O {[%clk
0:02:48.4]} 11. Nd2 {[%clk 0:02:48.1]} 11... f5 {[%clk 0:02:44.3]} 12. Nb3
{[%clk 0:02:48.3]} 12... Bb6 {[%clk 0:02:45.1]} 13. a4 {[%clk 0:02:48.5]} 13...
a5 {[%clk 0:02:45.5]} 14. Bg5 {[%clk 0:02:46.9]} 14... Ng6 {[%clk 0:02:37.2]}
15. Rae1 {[%clk 0:02:41.9]} 15... f4 {[%clk 0:02:32.3]} 16. h4 {[%clk
0:02:18.1]} 16... h6 {[%clk 0:02:20.8]} 17. h5 {[%clk 0:02:16.4]} 17... Ne5
{[%clk 0:02:18.5]} 18. Bh4 {[%clk 0:02:16.2]} 18... Bg4 {[%clk 0:02:15.8]} 19.
Kh2 {[%clk 0:02:11.4]} 19... f3 {[%clk 0:01:55]} 20. Nd2 {[%clk 0:02:00.8]}
20... Bxh5 {[%clk 0:01:50.5]} 21. Bg3 {[%clk 0:01:58.5]} 21... Rae8 {[%clk
0:01:31]} 22. Bxe5 {[%clk 0:01:54.2]} 22... Rxe5 {[%clk 0:01:31.3]} 23. gxf3
{[%clk 0:01:51.5]} 23... Bxf3 {[%clk 0:01:25.3]} 24. Nxf3 {[%clk 0:01:51.4]}
24... Rxf3 {[%clk 0:01:26.8]} 25. Kg2 {[%clk 0:01:52.3]} 25... Rf4 {[%clk
0:01:24.4]} 26. Kg3 {[%clk 0:01:52.8]} 26... g5 {[%clk 0:01:20]} 27. f3 {[%clk
0:01:53.3]} 27... Kg7 {[%clk 0:01:21.1]} 28. Rh1 {[%clk 0:01:53]} 28... Kg6
{[%clk 0:01:19.9]} 29. Rh3 {[%clk 0:01:46.9]} 29... h5 {[%clk 0:01:18.8]} 30.
Reh1 {[%clk 0:01:46.4]} 30... h4+ {[%clk 0:01:17.9]} 31. Kg2 {[%clk 0:01:45.9]}
31... Kf6 {[%clk 0:01:15.8]} 32. Rd1 {[%clk 0:01:44.6]} 32... g4 {[%clk
0:01:11.1]} 33. fxg4 {[%clk 0:01:41.8]} 33... Rxg4+ {[%clk 0:01:12.1]} 34. Kf3
{[%clk 0:01:39.6]} 34... Reg5 {[%clk 0:01:10.7]} 35. Rdh1 {[%clk 0:01:40.1]}
35... Rg3+ {[%clk 0:01:08.1]} 36. Ke2 {[%clk 0:01:39.9]} 36... Rg2+ {[%clk
0:00:56.9]} 37. Kf1 {[%clk 0:01:31.2]} 37... Rg1+ {[%clk 0:00:51]} 38. Ke2
{[%clk 0:01:31.2]} 38... R5g2+ {[%clk 0:00:48.2]} 0-1

[Event "*** Titled Tuesday Blitz"]
[Site "Chess.com"]
[Date "2019.08.06"]
[Round "3"]
[White "tbalabayev"]
[Black "Etoilegeniale"]
[Result "1-0"]
[WhiteElo "2376"]
[BlackElo "2523"]
[TimeControl "180+2"]
[EndTime "13:34:42 PDT"]
[Termination "tbalabayev won on time"]

1. Nf3 {[%clk 0:03:01.9]} 1... d5 {[%clk 0:02:59.8]} 2. g3 {[%clk 0:03:02.9]}
2... c6 {[%clk 0:03:00.2]} 3. Bg2 {[%clk 0:03:04.4]} 3... Nf6 {[%clk 0:03:00.3]}
4. O-O {[%clk 0:03:05.8]} 4... g6 {[%clk 0:02:59.1]} 5. d3 {[%clk 0:03:06.1]}
5... Bg7 {[%clk 0:03:00.3]} 6. Nbd2 {[%clk 0:03:07.7]} 6... O-O {[%clk
0:03:01.3]} 7. e4 {[%clk 0:03:09.2]} 7... Nbd7 {[%clk 0:03:01.4]} 8. Re1 {[%clk
0:03:08.6]} 8... e5 {[%clk 0:03:01.4]} 9. a4 {[%clk 0:03:03.8]} 9... Re8 {[%clk
0:03:01.5]} 10. a5 {[%clk 0:03:02.7]} 10... a6 {[%clk 0:03:02.4]} 11. b3 {[%clk
0:02:57.7]} 11... dxe4 {[%clk 0:02:43.2]} 12. dxe4 {[%clk 0:02:55.6]} 12... Nc5
{[%clk 0:02:44.1]} 13. Ba3 {[%clk 0:02:47.3]} 13... Nfd7 {[%clk 0:02:40.3]} 14.
Nc4 {[%clk 0:02:46]} 14... Bf8 {[%clk 0:02:32.8]} 15. Nd6 {[%clk 0:02:31.4]}
15... Re6 {[%clk 0:02:21.5]} 16. Nxc8 {[%clk 0:02:31]} 16... Rxc8 {[%clk
0:02:22.4]} 17. Bh3 {[%clk 0:02:27.9]} 17... Rd6 {[%clk 0:02:04.4]} 18. Qe2
{[%clk 0:02:28.2]} 18... Rc7 {[%clk 0:01:51.6]} 19. Nd2 {[%clk 0:02:23.8]} 19...
Rf6 {[%clk 0:01:45.3]} 20. Nc4 {[%clk 0:02:20.1]} 20... Ne6 {[%clk 0:01:45.5]}
21. Bb2 {[%clk 0:01:59.8]} 21... Bc5 {[%clk 0:01:44.9]} 22. Rf1 {[%clk
0:01:43.7]} 22... Nd4 {[%clk 0:01:45]} 23. Qd1 {[%clk 0:01:44.2]} 23... Qe7
{[%clk 0:01:33.1]} 24. Kg2 {[%clk 0:01:25.7]} 1-0

[Event "*** Titled Tuesday Blitz"]
[Site "Chess.com"]
[Date "2019.08.06"]
[Round "3"]
[White "yoolund"]
[Black "Zhuu96"]
[Result "0-1"]
[WhiteElo "2641"]
[BlackElo "2941"]
[TimeControl "180+2"]
[EndTime "13:34:51 PDT"]
[Termination "Zhuu96 won by resignation"]

1. d4 {[%clk 0:03:01.9]} 1... Nf6 {[%clk 0:03:00.5]} 2. Bg5 {[%clk 0:03:02.6]}
2... d5 {[%clk 0:02:56]} 3. Bxf6 {[%clk 0:03:01.8]} 3... gxf6 {[%clk 0:02:56.5]}
4. e3 {[%clk 0:03:03.7]} 4... c5 {[%clk 0:02:57.4]} 5. c4 {[%clk 0:03:03.8]}
5... cxd4 {[%clk 0:02:55.9]} 6. Qxd4 {[%clk 0:03:05.7]} 6... dxc4 {[%clk
0:02:53.4]} 7. Qxd8+ {[%clk 0:03:07.6]} 7... Kxd8 {[%clk 0:02:54.4]} 8. Bxc4
{[%clk 0:03:08.9]} 8... e6 {[%clk 0:02:55.8]} 9. Nc3 {[%clk 0:03:09.9]} 9... a6
{[%clk 0:02:57.2]} 10. Be2 {[%clk 0:03:07.4]} 10... Bd7 {[%clk 0:02:51.7]} 11.
Nf3 {[%clk 0:03:04]} 11... Nc6 {[%clk 0:02:50.7]} 12. O-O-O {[%clk 0:02:57.7]}
12... Kc7 {[%clk 0:02:50.2]} 13. Kb1 {[%clk 0:02:57]} 13... Rd8 {[%clk
0:02:50.8]} 14. Nd4 {[%clk 0:02:47.5]} 14... Nxd4 {[%clk 0:02:44.7]} 15. Rxd4
{[%clk 0:02:49.4]} 15... Bc6 {[%clk 0:02:45.2]} 16. Rxd8 {[%clk 0:02:43.1]}
16... Kxd8 {[%clk 0:02:46.1]} 17. Rd1+ {[%clk 0:02:32.4]} 17... Ke7 {[%clk
0:02:43.4]} 18. Bf3 {[%clk 0:01:28.1]} 18... Bxf3 {[%clk 0:02:40.1]} 19. gxf3
{[%clk 0:01:30]} 19... Rg8 {[%clk 0:02:41.3]} 20. Ne4 {[%clk 0:01:31.5]} 20...
Rg2 {[%clk 0:02:39.4]} 21. Rc1 {[%clk 0:01:32.8]} 21... f5 {[%clk 0:02:25.4]}
22. Rc7+ {[%clk 0:01:32.9]} 22... Kd8 {[%clk 0:02:26.5]} 23. Rxf7 {[%clk
0:01:34.2]} 23... Be7 {[%clk 0:02:27.9]} 24. Nf6 {[%clk 0:01:09.6]} 24... Rxh2
{[%clk 0:02:25]} 25. Nxh7 {[%clk 0:00:59]} 25... Rxf2 {[%clk 0:02:25.7]} 26. f4
{[%clk 0:00:59.2]} 26... Re2 {[%clk 0:02:26.9]} 27. Ng5 {[%clk 0:00:56.9]} 27...
Rxe3 {[%clk 0:02:28.1]} 28. Rg7 {[%clk 0:00:53.7]} 28... Re2 {[%clk 0:02:08.5]}
29. Nf7+ {[%clk 0:00:45]} 29... Ke8 {[%clk 0:02:06.6]} 30. Ne5 {[%clk
0:00:44.5]} 30... Bf6 {[%clk 0:02:07.7]} 31. Rxb7 {[%clk 0:00:38.4]} 31... Bxe5
{[%clk 0:02:09]} 32. fxe5 {[%clk 0:00:40.3]} 32... f4 {[%clk 0:02:10.4]} 33. Rb3
{[%clk 0:00:22.2]} 33... Rxe5 {[%clk 0:02:11.2]} 34. Rf3 {[%clk 0:00:23.5]}
34... Re4 {[%clk 0:02:10.8]} 35. Kc2 {[%clk 0:00:24.4]} 35... e5 {[%clk
0:02:12.1]} 36. Kd3 {[%clk 0:00:23.9]} 36... Rd4+ {[%clk 0:02:13.1]} 37. Kc3
{[%clk 0:00:24.9]} 37... Ke7 {[%clk 0:02:12.4]} 38. b4 {[%clk 0:00:23.6]} 38...
Ke6 {[%clk 0:02:09.3]} 39. a4 {[%clk 0:00:24.9]} 39... Kf5 {[%clk 0:02:10.7]}
40. b5 {[%clk 0:00:23.4]} 40... Rxa4 {[%clk 0:02:07.6]} 0-1

[Event "*** Titled Tuesday Blitz"]
[Site "Chess.com"]
[Date "2019.08.06"]
[Round "3"]
[White "belisarius64"]
[Black "Drags95"]
[Result "0-1"]
[WhiteElo "2641"]
[BlackElo "2847"]
[TimeControl "180+2"]
[EndTime "13:34:52 PDT"]
[Termination "Drags95 won by resignation"]

1. d4 {[%clk 0:03:01.9]} 1... Nf6 {[%clk 0:03:00.5]} 2. c4 {[%clk 0:03:03.2]}
2... e6 {[%clk 0:03:00.7]} 3. Nf3 {[%clk 0:03:04]} 3... d5 {[%clk 0:03:01.8]} 4.
g3 {[%clk 0:03:05.2]} 4... Bb4+ {[%clk 0:03:02.5]} 5. Nbd2 {[%clk 0:03:06.3]}
5... dxc4 {[%clk 0:03:01.4]} 6. Bg2 {[%clk 0:03:07]} 6... a5 {[%clk 0:02:48.9]}
7. O-O {[%clk 0:03:07.6]} 7... b5 {[%clk 0:02:49.9]} 8. a4 {[%clk 0:02:53.9]}
8... c6 {[%clk 0:02:50.7]} 9. Qc2 {[%clk 0:02:38.6]} 9... O-O {[%clk 0:02:43.3]}
10. b3 {[%clk 0:02:25.7]} 10... cxb3 {[%clk 0:02:38.6]} 11. Nxb3 {[%clk
0:02:27.6]} 11... bxa4 {[%clk 0:02:39.6]} 12. Rxa4 {[%clk 0:02:27.4]} 12... Ba6
{[%clk 0:02:41.1]} 13. Ne5 {[%clk 0:02:22.8]} 13... Bb5 {[%clk 0:02:38.4]} 14.
Ra1 {[%clk 0:02:23.4]} 14... a4 {[%clk 0:02:26]} 15. Qb2 {[%clk 0:02:06.9]}
15... Na6 {[%clk 0:01:51.4]} 16. Nxc6 {[%clk 0:01:37.6]} 16... Bxc6 {[%clk
0:01:31.8]} 17. Bxc6 {[%clk 0:01:39.5]} 17... Rc8 {[%clk 0:01:33.4]} 18. Bxa4
{[%clk 0:01:28.9]} 18... Bc3 {[%clk 0:01:34.5]} 19. Qa3 {[%clk 0:01:21.3]} 19...
Bxa1 {[%clk 0:01:34.6]} 20. Qxa1 {[%clk 0:01:23.2]} 20... Nb4 {[%clk 0:01:26.9]}
21. Bb5 {[%clk 0:01:13.8]} 21... Nc2 {[%clk 0:01:19.4]} 22. Qb2 {[%clk
0:01:07.9]} 22... Qb6 {[%clk 0:01:20.9]} 23. Bd3 {[%clk 0:01:05.4]} 23... Nb4
{[%clk 0:01:15.3]} 24. Bb1 {[%clk 0:01:06.9]} 24... Nbd5 {[%clk 0:01:10.4]} 25.
Bd2 {[%clk 0:00:52.7]} 25... Rb8 {[%clk 0:01:08.4]} 26. Bc2 {[%clk 0:00:54.1]}
26... Rfc8 {[%clk 0:01:09.6]} 27. Bd1 {[%clk 0:00:53.8]} 27... Ne4 {[%clk
0:01:07.9]} 28. f3 {[%clk 0:00:43.1]} 28... Nec3 {[%clk 0:00:55.6]} 0-1

[Event "*** Titled Tuesday Blitz"]
[Site "Chess.com"]
[Date "2019.08.06"]
[Round "3"]
[White "temus_galaktionov"]
[Black "Parhamov"]
[Result "1-0"]
[WhiteElo "2684"]
[BlackElo "2951"]
[TimeControl "180+2"]
[EndTime "13:34:59 PDT"]
[Termination "temus_galaktionov won by resignation"]

1. d4 {[%clk 0:03:01.9]} 1... Nf6 {[%clk 0:03:00.3]} 2. Nf3 {[%clk 0:03:02.9]}
2... e6 {[%clk 0:03:01.4]} 3. c4 {[%clk 0:03:03.7]} 3... d5 {[%clk 0:03:02.7]}
4. Nc3 {[%clk 0:03:04.1]} 4... dxc4 {[%clk 0:03:03.8]} 5. e3 {[%clk 0:03:04.8]}
5... a6 {[%clk 0:02:59.7]} 6. a4 {[%clk 0:03:05.2]} 6... b6 {[%clk 0:03:00.4]}
7. Bxc4 {[%clk 0:03:05.6]} 7... Bb7 {[%clk 0:03:00.1]} 8. O-O {[%clk 0:03:06.6]}
8... Nc6 {[%clk 0:02:57.3]} 9. e4 {[%clk 0:02:57.6]} 9... Na5 {[%clk 0:02:58.2]}
10. Bd3 {[%clk 0:02:58.1]} 10... Be7 {[%clk 0:02:57.2]} 11. Bg5 {[%clk
0:02:52.9]} 11... O-O {[%clk 0:02:56.4]} 12. Re1 {[%clk 0:02:53]} 12... Rc8
{[%clk 0:02:55.4]} 13. Qe2 {[%clk 0:02:20.1]} 13... h6 {[%clk 0:02:55]} 14. Bh4
{[%clk 0:02:18.9]} 14... Nb3 {[%clk 0:02:53.4]} 15. Rad1 {[%clk 0:02:19.2]}
15... Nxd4 {[%clk 0:02:52.7]} 16. Nxd4 {[%clk 0:02:19.4]} 16... Qxd4 {[%clk
0:02:54.4]} 17. Bxa6 {[%clk 0:02:15.9]} 17... Bxa6 {[%clk 0:02:55.5]} 18. Rxd4
{[%clk 0:02:10.8]} 18... Bxe2 {[%clk 0:02:55.6]} 19. Rxe2 {[%clk 0:02:12.7]}
19... Bc5 {[%clk 0:02:52.4]} 20. Rd3 {[%clk 0:02:12.9]} 20... Rfd8 {[%clk
0:02:49.5]} 21. Red2 {[%clk 0:02:09.7]} 21... Rxd3 {[%clk 0:02:50.7]} 22. Rxd3
{[%clk 0:02:11.6]} 22... g5 {[%clk 0:02:51.2]} 23. Bg3 {[%clk 0:02:11.3]} 23...
Nh5 {[%clk 0:02:49.7]} 24. Kf1 {[%clk 0:02:09.4]} 24... Nxg3+ {[%clk 0:02:44.2]}
25. hxg3 {[%clk 0:02:11.3]} 25... Kf8 {[%clk 0:02:44.9]} 26. b3 {[%clk
0:02:11.7]} 26... Ke7 {[%clk 0:02:45.9]} 27. g4 {[%clk 0:02:12.2]} 27... Bd6
{[%clk 0:02:43.2]} 28. Nb5 {[%clk 0:02:05.4]} 28... Be5 {[%clk 0:02:41]} 29. Na7
{[%clk 0:02:05.9]} 29... Ra8 {[%clk 0:02:31.6]} 30. Nc6+ {[%clk 0:02:06.6]}
30... Kf6 {[%clk 0:02:33.1]} 31. Rf3+ {[%clk 0:02:07.8]} 31... Bf4 {[%clk
0:02:34.3]} 32. g3 {[%clk 0:02:09]} 32... e5 {[%clk 0:02:35.6]} 33. gxf4 {[%clk
0:02:10.1]} 33... exf4 {[%clk 0:02:37]} 34. Rd3 {[%clk 0:02:10.1]} 34... Re8
{[%clk 0:02:37.8]} 35. f3 {[%clk 0:02:10.2]} 35... Re6 {[%clk 0:02:37.8]} 36.
Nb4 {[%clk 0:02:10.6]} 36... c5 {[%clk 0:02:32.2]} 37. Nd5+ {[%clk 0:02:11]}
37... Kg6 {[%clk 0:02:33.6]} 38. b4 {[%clk 0:02:07.1]} 38... cxb4 {[%clk
0:02:32.8]} 39. Rb3 {[%clk 0:02:08.2]} 39... Kg7 {[%clk 0:02:22.8]} 40. Rxb4
{[%clk 0:02:08.4]} 40... Rc6 {[%clk 0:02:24.1]} 41. Rxb6 {[%clk 0:01:55.2]}
41... Rc1+ {[%clk 0:02:25.1]} 42. Ke2 {[%clk 0:01:55.9]} 42... Rc2+ {[%clk
0:02:25.1]} 43. Ke1 {[%clk 0:01:55.3]} 43... Ra2 {[%clk 0:02:24.8]} 44. Nc3
{[%clk 0:01:52.6]} 44... Rc2 {[%clk 0:02:25.2]} 45. Ne2 {[%clk 0:01:52.4]} 45...
Ra2 {[%clk 0:02:22.4]} 46. Ra6 {[%clk 0:01:53.4]} 46... Kg8 {[%clk 0:02:13.4]}
47. Nd4 {[%clk 0:01:53]} 47... Ra3 {[%clk 0:02:07.9]} 48. Kd2 {[%clk 0:01:52]}
48... Kh7 {[%clk 0:02:07.2]} 49. a5 {[%clk 0:01:50.7]} 49... h5 {[%clk
0:02:01.8]} 50. gxh5 {[%clk 0:01:50.3]} 50... Ra2+ {[%clk 0:02:01.9]} 51. Kd3
{[%clk 0:01:49.8]} 51... Ra3+ {[%clk 0:02:00.9]} 52. Ke2 {[%clk 0:01:48.8]}
52... Ra2+ {[%clk 0:01:59.8]} 53. Kf1 {[%clk 0:01:49.9]} 53... Ra4 {[%clk
0:01:52.8]} 54. Nf5 {[%clk 0:01:45.4]} 54... Ra3 {[%clk 0:01:53.1]} 55. Kg2
{[%clk 0:01:46.3]} 55... Ra2+ {[%clk 0:01:51.9]} 56. Kh3 {[%clk 0:01:44.1]}
56... Rf2 {[%clk 0:01:52.4]} 57. Nd4 {[%clk 0:01:43.7]} 57... Rd2 {[%clk
0:01:52.8]} 58. Rd6 {[%clk 0:01:43.9]} 58... Ra2 {[%clk 0:01:53.9]} 59. a6
{[%clk 0:01:44.9]} 1-0

[Event "*** Titled Tuesday Blitz"]
[Site "Chess.com"]
[Date "2019.08.06"]
[Round "3"]
[White "warmoatmeal"]
[Black "ALEXJR20"]
[Result "1-0"]
[WhiteElo "2055"]
[BlackElo "2179"]
[TimeControl "180+2"]
[EndTime "13:35:01 PDT"]
[Termination "warmoatmeal won by resignation"]

1. Nf3 {[%clk 0:03:01.2]} 1... c5 {[%clk 0:02:57.4]} 2. e4 {[%clk 0:03:01]} 2...
Nc6 {[%clk 0:02:58.2]} 3. Bb5 {[%clk 0:02:59.9]} 3... g6 {[%clk 0:02:58.9]} 4.
c3 {[%clk 0:03:00]} 4... d5 {[%clk 0:02:56.1]} 5. exd5 {[%clk 0:02:53.2]} 5...
Qxd5 {[%clk 0:02:58]} 6. O-O {[%clk 0:02:53.9]} 6... Bg7 {[%clk 0:02:57.1]} 7.
Na3 {[%clk 0:02:51.8]} 7... Nf6 {[%clk 0:02:53.3]} 8. d3 {[%clk 0:02:51.7]} 8...
O-O {[%clk 0:02:52.3]} 9. Bc4 {[%clk 0:02:50.4]} 9... Qd7 {[%clk 0:02:45.9]} 10.
Be3 {[%clk 0:02:49.1]} 10... b6 {[%clk 0:02:46.5]} 11. d4 {[%clk 0:02:43.3]}
11... cxd4 {[%clk 0:02:46.1]} 12. Nxd4 {[%clk 0:02:45.2]} 12... Nxd4 {[%clk
0:02:42.8]} 13. Qxd4 {[%clk 0:02:44.5]} 13... Qxd4 {[%clk 0:02:41.9]} 14. Bxd4
{[%clk 0:02:44.6]} 14... Bb7 {[%clk 0:02:43.2]} 15. f3 {[%clk 0:02:44.2]} 15...
Rac8 {[%clk 0:02:27.5]} 16. Bb3 {[%clk 0:02:39.6]} 16... Nd7 {[%clk 0:02:26.5]}
17. Nc2 {[%clk 0:02:38.7]} 17... Bxd4+ {[%clk 0:02:24.2]} 18. Nxd4 {[%clk
0:02:40.6]} 18... a6 {[%clk 0:02:22.5]} 19. Rfe1 {[%clk 0:02:39.2]} 19... e5
{[%clk 0:02:21.7]} 20. Nc2 {[%clk 0:02:34.8]} 20... Rfe8 {[%clk 0:02:19.6]} 21.
Rad1 {[%clk 0:02:26]} 21... Nc5 {[%clk 0:02:20.3]} 22. Bd5 {[%clk 0:02:24.8]}
22... Bxd5 {[%clk 0:02:12.3]} 23. Rxd5 {[%clk 0:02:26.7]} 23... Na4 {[%clk
0:02:08.8]} 24. Rd6 {[%clk 0:01:01.5]} 24... Red8 {[%clk 0:01:41]} 25. Red1
{[%clk 0:01:01.8]} 25... Rxd6 {[%clk 0:01:40]} 26. Rxd6 {[%clk 0:01:02.3]} 26...
b5 {[%clk 0:01:35.8]} 27. Nb4 {[%clk 0:00:24.9]} 27... Nxb2 {[%clk 0:01:33]} 28.
Nd5 {[%clk 0:00:22]} 28... a5 {[%clk 0:01:06.3]} 29. Ne7+ {[%clk 0:00:22.1]} 1-0

[Event "*** Titled Tuesday Blitz"]
[Site "Chess.com"]
[Date "2019.08.06"]
[Round "3"]
[White "sergoy"]
[Black "Blazinq"]
[Result "1-0"]
[WhiteElo "2851"]
[BlackElo "2603"]
[TimeControl "180+2"]
[EndTime "13:35:02 PDT"]
[Termination "sergoy won by resignation"]

1. d4 {[%clk 0:03:01.9]} 1... d5 {[%clk 0:02:58.2]} 2. c4 {[%clk 0:03:03]} 2...
e6 {[%clk 0:02:59.7]} 3. Nf3 {[%clk 0:03:04.5]} 3... Nf6 {[%clk 0:03:00.8]} 4.
Nc3 {[%clk 0:03:06]} 4... c6 {[%clk 0:03:01.4]} 5. Bg5 {[%clk 0:03:06.3]} 5...
h6 {[%clk 0:03:00.2]} 6. Bh4 {[%clk 0:03:07.3]} 6... g5 {[%clk 0:02:56.3]} 7.
Bg3 {[%clk 0:02:57.1]} 7... dxc4 {[%clk 0:02:56.7]} 8. e4 {[%clk 0:02:45.1]}
8... b5 {[%clk 0:02:57.6]} 9. h4 {[%clk 0:02:46]} 9... g4 {[%clk 0:02:56.6]} 10.
Ne5 {[%clk 0:02:47.1]} 10... h5 {[%clk 0:02:47.9]} 11. Be2 {[%clk 0:02:41.6]}
11... Bb7 {[%clk 0:02:41.7]} 12. f3 {[%clk 0:02:37]} 12... gxf3 {[%clk
0:02:42.2]} 13. Bxf3 {[%clk 0:02:38]} 13... Nbd7 {[%clk 0:02:40.9]} 14. O-O
{[%clk 0:02:38.3]} 14... Qb6 {[%clk 0:02:14.7]} 15. Nxf7 {[%clk 0:02:14.7]}
15... Kxf7 {[%clk 0:02:08.3]} 16. e5 {[%clk 0:02:14.9]} 16... Bg7 {[%clk
0:01:56.9]} 17. Kh1 {[%clk 0:01:48.5]} 17... Ke7 {[%clk 0:01:49.2]} 18. exf6+
{[%clk 0:01:47.8]} 18... Bxf6 {[%clk 0:01:51.1]} 19. Qe2 {[%clk 0:01:47.3]}
19... Rag8 {[%clk 0:01:30.4]} 20. Bh2 {[%clk 0:01:44.8]} 20... Qxd4 {[%clk
0:01:26.2]} 21. Rad1 {[%clk 0:01:44.1]} 21... Qxh4 {[%clk 0:01:26.3]} 22. Ne4
{[%clk 0:01:18.3]} 22... Be5 {[%clk 0:01:15.7]} 23. Rxd7+ {[%clk 0:01:18.1]}
23... Kxd7 {[%clk 0:01:16.4]} 24. Nc5+ {[%clk 0:01:18.3]} 24... Kc7 {[%clk
0:00:55.6]} 25. Qxe5+ {[%clk 0:01:20.2]} 25... Kb6 {[%clk 0:00:57.3]} 26. Nd7+
{[%clk 0:01:13.4]} 26... Ka6 {[%clk 0:00:55.6]} 27. Qc7 {[%clk 0:01:09]} 27...
Qg5 {[%clk 0:00:51.5]} 28. b4 {[%clk 0:01:05]} 28... cxb3 {[%clk 0:00:48.2]} 29.
axb3 {[%clk 0:00:48.8]} 29... b4 {[%clk 0:00:38.7]} 30. Ra1+ {[%clk 0:00:43.3]}
1-0

[Event "*** Titled Tuesday Blitz"]
[Site "Chess.com"]
[Date "2019.08.06"]
[Round "3"]
[White "Olga_Girya"]
[Black "Padenie_Zvezd"]
[Result "0-1"]
[WhiteElo "2500"]
[BlackElo "2808"]
[TimeControl "180+2"]
[EndTime "13:35:18 PDT"]
[Termination "Padenie_Zvezd won by resignation"]

1. d4 {[%clk 0:03:00.1]} 1... d5 {[%clk 0:03:00]} 2. c4 {[%clk 0:03:00.8]} 2...
dxc4 {[%clk 0:03:00.7]} 3. e3 {[%clk 0:03:01.8]} 3... Be6 {[%clk 0:03:00.5]} 4.
Nf3 {[%clk 0:03:00.8]} 4... c6 {[%clk 0:03:01.1]} 5. Nc3 {[%clk 0:03:01.4]} 5...
b5 {[%clk 0:03:01.7]} 6. Be2 {[%clk 0:03:02.8]} 6... Nf6 {[%clk 0:03:02.3]} 7.
O-O {[%clk 0:03:04.3]} 7... g6 {[%clk 0:03:02.6]} 8. Ne5 {[%clk 0:03:00.6]} 8...
Bg7 {[%clk 0:03:00.9]} 9. Bf3 {[%clk 0:03:00.9]} 9... Nd5 {[%clk 0:02:59]} 10.
e4 {[%clk 0:02:49.4]} 10... Nxc3 {[%clk 0:02:57.7]} 11. bxc3 {[%clk 0:02:50.6]}
11... Bxe5 {[%clk 0:02:57]} 12. dxe5 {[%clk 0:02:51.7]} 12... Qxd1 {[%clk
0:02:58.9]} 13. Rxd1 {[%clk 0:02:52.9]} 13... Nd7 {[%clk 0:03:00.8]} 14. Bf4
{[%clk 0:02:46.9]} 14... Nc5 {[%clk 0:03:01.9]} 15. Be2 {[%clk 0:02:30.1]} 15...
Nxe4 {[%clk 0:02:58.3]} 16. Bf3 {[%clk 0:02:31.3]} 16... Bd5 {[%clk 0:02:58.8]}
17. Bxe4 {[%clk 0:02:31.7]} 17... Bxe4 {[%clk 0:02:59.8]} 18. Rd4 {[%clk
0:02:18.3]} 18... Bd5 {[%clk 0:02:51]} 19. Bh6 {[%clk 0:02:18.9]} 19... O-O-O
{[%clk 0:02:47.2]} 20. a4 {[%clk 0:02:15.8]} 20... c5 {[%clk 0:02:36.1]} 21.
Rdd1 {[%clk 0:01:58.3]} 21... b4 {[%clk 0:02:35.7]} 22. Be3 {[%clk 0:01:57]}
22... b3 {[%clk 0:02:28.4]} 23. f3 {[%clk 0:01:36.6]} 23... Be6 {[%clk 0:02:27]}
24. Bxc5 {[%clk 0:01:29.9]} 24... Bf5 {[%clk 0:02:04.9]} 25. Ba3 {[%clk
0:00:39]} 25... Bc2 {[%clk 0:01:57.3]} 26. Rxd8+ {[%clk 0:00:37.9]} 26... Rxd8
{[%clk 0:01:56.7]} 27. Rf1 {[%clk 0:00:36.6]} 27... a5 {[%clk 0:01:41.7]} 28.
Re1 {[%clk 0:00:28.7]} 28... Rd3 {[%clk 0:01:39.7]} 29. Bb2 {[%clk 0:00:29.5]}
29... Kd7 {[%clk 0:01:37.6]} 30. Kf2 {[%clk 0:00:30]} 30... Ke6 {[%clk 0:01:38]}
31. f4 {[%clk 0:00:29]} 31... Kf5 {[%clk 0:01:38.7]} 32. g3 {[%clk 0:00:27.9]}
32... h5 {[%clk 0:01:34.4]} 33. Re3 {[%clk 0:00:28.5]} 33... Rd5 {[%clk
0:01:21.1]} 34. Bc1 {[%clk 0:00:28.8]} 34... h4 {[%clk 0:01:13.5]} 35. gxh4
{[%clk 0:00:28.7]} 35... Rd1 {[%clk 0:01:11.7]} 36. Re1 {[%clk 0:00:29]} 36...
Rxc1 {[%clk 0:01:12.3]} 37. Rxc1 {[%clk 0:00:29.9]} 37... b2 {[%clk 0:01:13.3]}
0-1

[Event "*** Titled Tuesday Blitz"]
[Site "Chess.com"]
[Date "2019.08.06"]
[Round "3"]
[White "VladimirBelous"]
[Black "area_5"]
[Result "1-0"]
[WhiteElo "2804"]
[BlackElo "2580"]
[TimeControl "180+2"]
[EndTime "13:35:21 PDT"]
[Termination "VladimirBelous won by resignation"]

1. c4 {[%clk 0:03:01.9]} 1... Nf6 {[%clk 0:02:59.1]} 2. Nc3 {[%clk 0:02:52.2]}
2... e6 {[%clk 0:02:59.9]} 3. d4 {[%clk 0:02:50.7]} 3... Bb4 {[%clk 0:02:59.4]}
4. f3 {[%clk 0:02:47.5]} 4... d5 {[%clk 0:02:59]} 5. a3 {[%clk 0:02:44.7]} 5...
Bxc3+ {[%clk 0:02:59.1]} 6. bxc3 {[%clk 0:02:46.6]} 6... O-O {[%clk 0:02:59.7]}
7. cxd5 {[%clk 0:02:47.2]} 7... exd5 {[%clk 0:02:59.9]} 8. e3 {[%clk 0:02:45.2]}
8... c5 {[%clk 0:02:59.5]} 9. Bd3 {[%clk 0:02:45.6]} 9... Re8 {[%clk 0:02:58.7]}
10. Ne2 {[%clk 0:02:46.5]} 10... b6 {[%clk 0:02:59.4]} 11. O-O {[%clk
0:02:47.4]} 11... Ba6 {[%clk 0:03:00.2]} 12. Ng3 {[%clk 0:02:48.2]} 12... Bxd3
{[%clk 0:02:59.8]} 13. Qxd3 {[%clk 0:02:50.1]} 13... Nc6 {[%clk 0:03:00.6]} 14.
Ra2 {[%clk 0:02:50.8]} 14... Qd7 {[%clk 0:02:58.4]} 15. Re2 {[%clk 0:02:44.7]}
15... b5 {[%clk 0:02:54.2]} 16. Nf5 {[%clk 0:02:30.1]} 16... c4 {[%clk
0:02:49.2]} 17. Qc2 {[%clk 0:02:23.1]} 17... a5 {[%clk 0:02:47.9]} 18. e4 {[%clk
0:02:24.4]} 18... dxe4 {[%clk 0:02:39.2]} 19. fxe4 {[%clk 0:02:26.3]} 19... b4
{[%clk 0:02:38.9]} 20. e5 {[%clk 0:02:20]} 20... Nd5 {[%clk 0:02:36.1]} 21. cxb4
{[%clk 0:02:04.3]} 21... axb4 {[%clk 0:02:33.9]} 22. Qxc4 {[%clk 0:01:54.9]}
22... bxa3 {[%clk 0:01:54.1]} 23. Nd6 {[%clk 0:01:53.4]} 23... Nb6 {[%clk
0:01:45.5]} 24. Qa2 {[%clk 0:01:33.7]} 24... Nb4 {[%clk 0:01:26]} 25. Qb3 {[%clk
0:01:25.7]} 25... a2 {[%clk 0:01:11.6]} 26. Bb2 {[%clk 0:00:51.3]} 26... N6d5
{[%clk 0:00:42.7]} 27. Nxe8 {[%clk 0:00:51.1]} 27... Qxe8 {[%clk 0:00:40.8]} 28.
Ba3 {[%clk 0:00:47.5]} 28... Qb5 {[%clk 0:00:30.5]} 29. Rxa2 {[%clk 0:00:42.3]}
29... Ne3 {[%clk 0:00:13.3]} 30. Qxf7+ {[%clk 0:00:39.4]} 1-0